bitfinex-derivatives/quotes_SOLF0:USTF0_20250421
["timestamp","ask_amount","ask_price","bid_price","bid_amount"]
[1745247321977,18.82992802,139.49,139.41,33.9292]
[1745247322378,21.87192802,139.49,139.42,7.1706]
[1745247322577,7.1697,139.45,139.42,7.1706]
[1745247322779,7.1697,139.45,139.44,0.05333839]
[1745247324582,25.99962802,139.45,139.44,0.05333839]
[1745247325378,7.1697,139.45,139.44,0.05333839]
[1745247325579,7.1692,139.46,139.44,0.05333839]
[1745247325777,30.86604428,139.47,139.44,0.05333839]
[1745247325778,0.04604428,139.47,139.44,0.05333839]
[1745247326185,7.21474428,139.47,139.44,7.22283839]
[1745247326380,7.21474428,139.47,139.44,0.05333839]
[1745247326580,7.21474428,139.47,139.44,7.22293839]
[1745247328080,7.21474428,139.47,139.44,0.05333839]
[1745247328278,0.04604428,139.47,139.46,7.1689]
[1745247328783,0.04604428,139.47,139.44,0.05333839]
[1745247328784,0.04604428,139.47,139.45,7.1692]
[1745247328985,0.04604428,139.47,139.44,0.05333839]
[1745247329286,7.21474428,139.47,139.44,7.22283839]
[1745247330687,0.04604428,139.47,139.44,0.05333839]
[1745247330887,33.9277,139.53,139.44,18.88326641]
[1745247331085,7.1662,139.52,139.5,7.1668]
[1745247331884,33.9277,139.53,139.51,7.1659]
[1745247332085,0.04523716,139.52,139.51,7.1659]
[1745247332287,37.2186,139.56,139.51,7.1659]
[1745247332489,0.05516263,139.53,139.51,7.1663]
[1745247332787,0.05516263,139.53,139.5,0.05023268]
[1745247333390,30.8,139.59,139.51,49.62992802]
[1745247333585,7.1631,139.58,139.55,7.164]
[1745247333788,30.8,139.59,139.51,55.81622802]
[1745247334292,7.1635,139.57,139.51,55.81622802]
[1745247334691,0.05347349,139.55,139.53,0.0516571]
[1745247334892,0.05347349,139.55,139.54,7.1648]
[1745247336595,40.383,139.62,139.53,18.88158512]
[1745247336895,7.1617,139.6,139.55,18.82992802]
[1745247337193,7.1617,139.6,139.57,7.1629]
[1745247337396,40.383,139.62,139.57,7.1629]
[1745247337687,40.383,139.62,139.53,18.82992802]
[1745247337891,0.0481056,139.61,139.58,0.04757014]
[1745247338089,7.1626,139.59,139.58,0.04757014]
[1745247338992,7.1619,139.6,139.58,0.04757014]
[1745247339183,0.0481056,139.61,139.58,7.21007014]
[1745247339389,7.2095056,139.61,139.58,7.21007014]
[1745247339790,0.0481056,139.61,139.6,7.1617]
[1745247340693,0.0481056,139.61,139.58,0.04757014]
[1745247341195,0.0481056,139.61,139.59,7.1618]
[1745247342297,0.0481056,139.61,139.6,7.1617]
[1745247343600,0.0481056,139.61,139.59,7.162]
[1745247344696,0.0481056,139.61,139.58,0.04757014]
[1745247345296,7.162,139.6,139.58,0.04757014]
[1745247345798,7.1622,139.59,139.58,0.04757014]
[1745247346592,18.82992802,139.6,139.52,30.78]
[1745247346799,28.02072802,139.6,139.52,30.78]
[1745247346999,28.02072802,139.6,139.53,7.165]
[1745247347195,18.82992802,139.58,139.52,30.78]
[1745247347699,7.1645,139.55,139.52,7.1653]
[1745247347900,7.1645,139.55,139.54,0.04980071]
[1745247350402,7.1659,139.52,139.49,30.78]
[1745247350700,7.1659,139.52,139.49,37.947]
[1745247351302,7.1659,139.52,139.5,7.1667]
[1745247351500,0.04626586,139.52,139.5,7.1667]
[1745247351804,0.04626586,139.52,139.51,7.1663]
[1745247353006,9.1908,139.6,139.55,7.164]
[1745247353306,9.1908,139.6,139.53,49.60992802]
[1745247353604,30.78,139.62,139.58,7.1625]
[1745247354005,7.1617,139.6,139.54,6.0169]
[1745247354305,0.04973379,139.61,139.59,0.04968016]
[1745247354506,7.1625,139.59,139.54,6.0169]
[1745247354706,0.04973379,139.61,139.54,6.0169]
[1745247354905,7.163,139.58,139.55,0.04907986]
[1745247355101,0.05271885,139.59,139.55,0.04907986]
[1745247355304,0.05271885,139.59,139.55,18.87900788]
[1745247355802,0.05271885,139.59,139.57,7.163]
[1745247356007,0.05271885,139.59,139.55,0.04907986]
[1745247356405,7.163,139.58,139.55,7.21307986]
[1745247356909,7.163,139.58,139.55,0.04907986]
[1745247357110,7.163,139.58,139.55,7.21307986]
[1745247357306,7.163,139.58,139.55,0.04907986]
[1745247357506,7.21511885,139.59,139.56,7.1635]
[1745247358610,7.1628,139.58,139.55,7.21307986]
[1745247359806,0.05271885,139.59,139.55,0.04907986]
[1745247360310,7.1638,139.56,139.55,0.04907986]
[1745247362013,55.56672802,139.58,139.49,30.76]
[1745247362311,18.82992802,139.56,139.5,7.1666]
[1745247362512,7.1661,139.52,139.49,30.76]
[1745247362913,7.1661,139.52,139.49,37.9271]
[1745247363113,0.052402,139.52,139.49,30.81148257]
[1745247363413,0.052402,139.52,139.49,37.97858257]
[1745247363714,7.218202,139.52,139.49,37.97858257]
[1745247363918,0.052402,139.52,139.49,30.81148257]
[1745247364117,0.052402,139.52,139.49,0.05148257]
[1745247364417,7.1668,139.5,139.49,0.05148257]
[1745247367108,0.052402,139.52,139.49,0.05148257]
[1745247368314,0.052402,139.52,139.5,7.1664]
[1745247368616,0.052402,139.52,139.49,0.05148257]
[1745247368817,0.052402,139.52,139.51,7.1663]
[1745247369213,7.164,139.56,139.5,49.58992802]
[1745247369413,3.1111,139.57,139.5,55.69552802]
[1745247369712,7.1651,139.54,139.51,7.1662]
[1745247369916,18.82992802,139.56,139.5,30.76]
[1745247370117,49.58992802,139.56,139.47,30.76]
[1745247370415,0.05151628,139.53,139.5,0.05124696]
[1745247370819,0.05151628,139.53,139.51,7.1661]
[1745247371116,0.05151628,139.53,139.5,0.05124696]
[1745247371518,7.21711628,139.53,139.5,7.21784696]
[1745247371714,0.05151628,139.53,139.5,0.05124696]
[1745247372316,0.05151628,139.53,139.52,7.1658]
[1745247373412,3.153,139.61,139.57,7.1632]
[1745247374012,7.1625,139.59,139.57,7.1632]
[1745247374517,7.163,139.58,139.57,0.0518119]
[1745247375407,7.21161545,139.59,139.57,0.0518119]
[1745247375609,67.50562485,139.74,139.58,617.08992802]
[1745247375807,67.50562485,139.74,139.67,18.82992802]
[1745247376019,67.50562485,139.74,139.68,30.76]
[1745247376821,67.50562485,139.74,139.7,0.04943927]
[1745247377020,67.50562485,139.74,139.7,7.20563927]
[1745247377718,67.50562485,139.74,139.7,0.04943927]
[1745247378721,24.87122802,139.76,139.7,0.04943927]
[1745247379021,32.02502802,139.76,139.7,0.04943927]
[1745247379222,24.87122802,139.76,139.7,0.04943927]
[1745247379419,6.0413,139.76,139.7,0.04943927]
[1745247380020,6.0413,139.76,139.68,30.74]
[1745247381122,0.04580443,139.73,139.71,0.04975166]
[1745247382925,0.04580443,139.73,139.61,3.1452]
[1745247383125,59.57426543,139.74,139.62,30.74]
[1745247383325,7.1569,139.7,139.66,7.1586]
[1745247384327,0.05162644,139.69,139.67,7.20376116]
[1745247384532,0.05162644,139.69,139.67,0.04566116]
[1745247384831,0.05162644,139.69,139.67,7.20356116]
[1745247385432,0.05162644,139.69,139.67,0.04566116]
[1745247385630,0.05162644,139.69,139.57,30.028461]
[1745247385830,30.028461,139.68,139.58,30.74]
[1745247386730,0.05190778,139.64,139.62,0.05188245]
[1745247388033,0.05190778,139.64,139.63,7.1602]
[1745247388932,0.05190778,139.64,139.62,7.21238245]
[1745247389232,0.05190778,139.64,139.62,0.05188245]
[1745247389633,0.05190778,139.64,139.63,7.1602]
[1745247392331,0.05190778,139.64,139.62,7.21228245]
[1745247392526,0.05190778,139.64,139.62,0.05188245]
[1745247392934,0.05190778,139.64,139.63,7.1602]
[1745247393830,0.05190778,139.64,139.62,7.21238245]
[1745247394129,0.05190778,139.64,139.62,0.05188245]
[1745247394735,0.05190778,139.64,139.63,7.1602]
[1745247395738,0.05190778,139.64,139.62,37.91238245]
[1745247396036,0.05190778,139.64,139.62,30.75188245]
[1745247396432,0.05190778,139.64,139.62,0.05188245]
[1745247396737,7.1602,139.63,139.62,0.05188245]
[1745247397236,7.21180778,139.64,139.62,0.05188245]
[1745247397436,0.05190778,139.64,139.62,0.05188245]
[1745247398236,7.1602,139.63,139.62,0.05188245]
[1745247399837,0.05190778,139.64,139.62,0.05188245]
[1745247400136,0.05190778,139.64,139.62,7.21218245]
[1745247400639,0.05190778,139.64,139.62,0.05188245]
[1745247401940,7.1602,139.63,139.62,0.05188245]
[1745247403441,30.028461,139.62,139.53,30.7]
[1745247403733,30.7,139.61,139.53,30.7]
[1745247404137,30.7,139.61,139.51,2.6046]
[1745247404338,7.164,139.56,139.51,2.6046]
[1745247404541,0.05206475,139.57,139.55,0.04983817]
[1745247404731,0.05206475,139.57,139.51,2.6046]
[1745247404936,7.164,139.56,139.55,0.04816732]
[1745247405843,0.05206475,139.57,139.55,0.04816732]
[1745247406640,7.21556475,139.57,139.55,0.04816732]
[1745247407143,0.05206475,139.57,139.55,0.04816732]
[1745247407642,7.1638,139.56,139.55,0.04816732]
[1745247408944,7.21546475,139.57,139.55,0.04816732]
[1745247409446,0.05206475,139.57,139.55,0.04816732]
[1745247410042,7.1638,139.56,139.55,0.04816732]
[1745247413147,7.21546475,139.57,139.55,0.04816732]
[1745247413446,0.05206475,139.57,139.55,0.04816732]
[1745247414250,7.1638,139.56,139.55,0.04816732]
[1745247418451,7.1652,139.54,139.5,30.7]
[1745247418640,49.53613603,139.57,139.5,30.7]
[1745247418844,49.53613603,139.57,139.5,37.8666]
[1745247419044,7.1654,139.53,139.5,37.8666]
[1745247419245,49.53613603,139.57,139.5,30.7]
[1745247419445,7.1655,139.53,139.5,37.8665]
[1745247419646,7.1655,139.53,139.52,0.04857703]
[1745247422553,7.1651,139.54,139.52,0.04857703]
[1745247422853,7.1652,139.54,139.52,0.04857703]
[1745247423046,0.05057871,139.55,139.52,0.04857703]
[1745247423253,396.913,139.62,139.56,7.1635]
[1745247423553,7.1625,139.59,139.53,18.81613603]
[1745247423945,7.1625,139.59,139.55,7.164]
[1745247424350,7.21602076,139.58,139.56,0.04654371]
[1745247425955,7.21602076,139.58,139.56,7.21024371]
[1745247426252,7.21602076,139.58,139.56,0.04654371]
[1745247426656,7.1632,139.57,139.56,0.04654371]
[1745247428455,7.1661,139.52,139.43,14.3407]
[1745247428652,7.1661,139.52,139.46,10.23023349]
[1745247428852,7.1661,139.52,139.46,2.4772]
[1745247429052,7.1661,139.52,139.48,7.1675]
[1745247429352,7.1663,139.51,139.48,7.1675]
[1745247429654,0.04989574,139.51,139.48,0.0485136]
[1745247429848,7.21649574,139.51,139.48,0.0485136]
[1745247430046,7.21649574,139.51,139.48,7.2161136]
[1745247430245,7.21649574,139.51,139.48,0.0485136]
[1745247430449,0.04989574,139.51,139.48,0.0485136]
[1745247430646,18.81613603,139.5,139.48,0.0485136]
[1745247430850,0.04989574,139.51,139.48,0.0485136]
[1745247431050,7.1671,139.5,139.48,0.0485136]
[1745247431550,7.1673,139.49,139.48,0.0485136]
[1745247431858,0.04989574,139.51,139.48,0.0485136]
[1745247432155,7.1671,139.5,139.48,0.0485136]
[1745247432455,0.04989574,139.51,139.48,0.0485136]
[1745247434258,7.1669,139.5,139.48,0.0485136]
[1745247435668,7.1673,139.49,139.48,0.0485136]
[1745247440563,7.1668,139.5,139.48,0.0485136]
[1745247440760,0.04989574,139.51,139.48,0.0485136]
[1745247441165,7.21649574,139.51,139.48,0.0485136]
[1745247441655,7.21649574,139.51,139.48,7.2158136]
[1745247441855,0.04989574,139.51,139.48,0.0485136]
[1745247442963,0.04989574,139.51,139.5,7.1668]
[1745247443167,0.04989574,139.51,139.48,0.0485136]
[1745247443365,0.04989574,139.51,139.49,7.1671]
[1745247443564,0.04989574,139.51,139.48,0.0485136]
[1745247443969,0.04989574,139.51,139.5,7.1668]
[1745247445467,0.04989574,139.51,139.49,7.1671]
[1745247445669,7.21629574,139.51,139.49,7.1671]
[1745247445967,0.04989574,139.51,139.49,7.1671]
[1745247446669,0.04989574,139.51,139.48,7.2162136]
[1745247446863,0.04989574,139.51,139.48,0.0485136]
[1745247447063,0.04989574,139.51,139.49,7.1671]
[1745247447365,0.04989574,139.51,139.48,0.0485136]
[1745247447566,0.04989574,139.51,139.5,7.1668]
[1745247449367,0.04989574,139.51,139.48,2.5663136]
[1745247449670,0.04989574,139.51,139.48,0.0485136]
[1745247450170,0.04989574,139.51,139.49,7.71296536]
[1745247450470,0.04989574,139.51,139.5,7.1668]
[1745247451370,0.04989574,139.51,139.49,7.1671]
[1745247451572,0.04989574,139.51,139.48,0.0485136]
[1745247451772,0.04989574,139.51,139.49,7.71403126]
[1745247451969,0.04989574,139.51,139.49,7.1671]
[1745247452472,7.21619574,139.51,139.48,7.2161136]
[1745247452774,0.04989574,139.51,139.48,0.0485136]
[1745247453072,7.21649574,139.51,139.48,7.2159136]
[1745247453873,7.21649574,139.51,139.49,7.1673]
[1745247454671,7.21649574,139.51,139.48,7.2161136]
[1745247454871,7.167,139.5,139.48,0.0485136]
[1745247457073,0.04989574,139.51,139.48,7.2164136]
[1745247457074,7.21649574,139.51,139.48,7.2164136]
[1745247458077,7.1669,139.5,139.48,7.2164136]
[1745247458375,7.1669,139.5,139.48,0.0485136]
[1745247458971,7.21639574,139.51,139.48,0.0485136]
[1745247459177,7.21639574,139.51,139.48,7.2161136]
[1745247459778,7.1669,139.5,139.48,7.2161136]
[1745247461576,7.1669,139.5,139.48,0.0485136]
[1745247463283,7.1669,139.5,139.48,7.2163136]
[1745247463474,25.98343603,139.49,139.48,0.0485136]
[1745247464875,2.563,139.5,139.48,0.0485136]
[1745247465078,0.04989574,139.51,139.48,0.0485136]
[1745247465882,0.04989574,139.51,139.5,7.1668]
[1745247466377,2.4825,139.55,139.48,49.52464963]
[1745247466577,2.4825,139.55,139.52,7.1654]
[1745247467079,7.1653,139.54,139.51,7.1661]
[1745247467278,2.4825,139.55,139.51,7.1661]
[1745247467475,0.0535546,139.54,139.51,7.21552953]
[1745247467779,7.2185546,139.54,139.51,7.21552953]
[1745247468977,7.2185546,139.54,139.52,7.1658]
[1745247469378,7.2185546,139.54,139.51,0.04942953]
[1745247469682,7.2185546,139.54,139.51,7.21542953]
[1745247470986,0.0535546,139.54,139.51,0.04942953]
[1745247471885,7.1658,139.52,139.51,0.04942953]
[1745247472381,0.0535546,139.54,139.51,0.04942953]
[1745247472887,7.1655,139.53,139.51,0.04942953]
[1745247474785,7.1658,139.52,139.51,0.04942953]
[1745247475382,7.1655,139.53,139.51,0.04942953]
[1745247475782,0.0535546,139.54,139.51,0.04942953]
[1745247476083,7.1657,139.53,139.51,0.04942953]
[1745247477384,7.1658,139.52,139.51,0.04942953]
[1745247481383,7.1671,139.5,139.48,30.66]
[1745247481589,18.81613603,139.53,139.48,30.66]
[1745247481987,18.81613603,139.51,139.42,4.581]
[1745247482289,18.81613603,139.49,139.43,38.06839476]
[1745247482490,0.04517176,139.48,139.45,0.05428116]
[1745247483495,0.04517176,139.48,139.46,7.1686]
[1745247483994,0.04517176,139.48,139.47,7.1684]
[1745247484187,0.04517176,139.48,139.46,7.44748803]
[1745247484494,0.04517176,139.48,139.47,14.61588803]
[1745247485188,0.04517176,139.48,139.45,7.22348116]
[1745247485482,0.04517176,139.48,139.45,0.05428116]
[1745247486394,7.1712,139.42,139.39,7.1724]
[1745247486593,18.81613603,139.43,139.4,7.45155428]
[1745247486795,18.81613603,139.45,139.37,33.012]
[1745247486995,18.81613603,139.45,139.38,7.45063794]
[1745247487191,18.81613603,139.45,139.39,7.45063794]
[1745247487392,12.0637973,139.42,139.4,7.50271259]
[1745247487694,12.0637973,139.42,139.4,0.05207465]
[1745247488194,7.1715,139.41,139.4,0.05207465]
[1745247488394,12.0637973,139.42,139.4,0.05207465]
[1745247488795,12.0637973,139.42,139.41,7.1715]
[1745247488997,12.0637973,139.42,139.4,0.05207465]
[1745247489295,7.1712,139.42,139.4,0.05207465]
[1745247489795,0.04614542,139.43,139.4,0.05207465]
[1745247490589,7.1712,139.42,139.4,0.05207465]
[1745247490992,0.04614542,139.43,139.4,0.05207465]
[1745247491600,7.1712,139.42,139.4,0.05207465]
[1745247491801,0.04614542,139.43,139.4,0.05207465]
[1745247492002,0.04614542,139.43,139.4,7.22377465]
[1745247492303,7.21684542,139.43,139.4,7.22377465]
[1745247496605,0.04614542,139.43,139.4,0.05207465]
[1745247497409,0.04614542,139.43,139.41,7.1711]
[1745247499003,0.04614542,139.43,139.42,7.1709]
[1745247499407,0.04614542,139.43,139.4,0.05207465]
[1745247500008,0.04614542,139.43,139.41,7.1712]
[1745247503515,7.21674542,139.43,139.4,7.22387465]
[1745247503716,0.04614542,139.43,139.4,0.05207465]
[1745247505315,7.1685,139.47,139.44,7.1697]
[1745247505518,18.84994282,139.5,139.42,4.7271]
[1745247505821,0.04886492,139.47,139.44,0.05253135]
[1745247506319,0.04886492,139.47,139.46,7.1689]
[1745247506920,7.1666,139.51,139.49,7.1671]
[1745247508021,7.21225668,139.51,139.49,7.2181451]
[1745247508220,0.04565668,139.51,139.5,7.1668]
[1745247508720,7.164,139.56,139.53,7.165]
[1745247509416,7.1636,139.57,139.49,32.9494]
[1745247509622,14.50150952,139.59,139.53,12.03890952]
[1745247509921,14.50150952,139.59,139.53,42.65890952]
[1745247510219,2.4626,139.59,139.53,42.65890952]
[1745247510423,2.4626,139.59,139.56,7.1636]
[1745247510617,2.4626,139.59,139.53,42.65890952]
[1745247511221,0.05481134,139.57,139.55,0.05298346]
[1745247512220,0.05481134,139.57,139.56,7.1634]
[1745247512623,49.42423727,139.63,139.55,0.05298346]
[1745247512921,2.4072,139.64,139.55,18.85722073]
[1745247513120,2.4072,139.64,139.55,18.80423727]
[1745247513320,2.4072,139.64,139.56,2.4566]
[1745247513517,7.1603,139.63,139.6,7.1614]
[1745247514016,2.4023,139.66,139.59,0.04908939]
[1745247514226,9.561,139.66,139.62,7.1604]
[1745247514721,7.1592,139.65,139.63,0.04602411]
[1745247515623,9.5612,139.66,139.63,0.04602411]
[1745247515820,2.4023,139.66,139.63,0.04602411]
[1745247517025,9.5611,139.66,139.63,0.04602411]
[1745247517221,18.80423727,139.65,139.57,30.56]
[1745247517723,18.80423727,139.65,139.6,7.1616]
[1745247517923,18.80423727,139.65,139.57,30.56]
[1745247518125,7.1605,139.63,139.57,30.56]
[1745247518326,0.05135742,139.62,139.6,0.04777368]
[1745247518926,0.05135742,139.62,139.61,7.1612]
[1745247519324,2.4252,139.7,139.62,7.1604]
[1745247519628,18.80423727,139.65,139.57,30.56]
[1745247519828,7.1599,139.64,139.6,7.1614]
[1745247520324,7.161,139.62,139.58,7.1624]
[1745247520629,7.161,139.62,139.61,0.04778866]
[1745247520826,7.161,139.62,139.57,30.56]
[1745247521029,7.161,139.62,139.6,0.04902679]
[1745247521223,7.1594,139.65,139.6,0.04902679]
[1745247521625,32.8328,139.69,139.61,30.56]
[1745247521826,7.1578,139.68,139.61,30.56]
[1745247522130,7.1578,139.68,139.64,0.0481526]
[1745247523241,7.1578,139.68,139.65,7.1591]
[1745247523531,7.1578,139.68,139.64,0.0481526]
[1745247523731,7.1581,139.67,139.64,0.0481526]
[1745247523929,567.68,139.72,139.64,0.0481526]
[1745247524230,7.1568,139.7,139.64,0.0481526]
[1745247524430,586.48423727,139.72,139.66,7.1584]
[1745247524627,7.1572,139.69,139.66,7.1584]
[1745247524825,18.80423727,139.7,139.68,0.05172991]
[1745247525025,2.3636,139.69,139.64,7.1594]
[1745247525226,18.80423727,139.68,139.61,30.56]
[1745247525423,21.20763727,139.68,139.65,0.05460222]
[1745247525835,7.1584,139.67,139.65,0.05460222]
[1745247526533,21.20763727,139.68,139.61,30.56]
[1745247527434,7.1584,139.67,139.64,7.1596]
[1745247527638,0.04871992,139.66,139.64,7.1596]
[1745247527936,0.04871992,139.66,139.63,0.05322966]
[1745247528128,7.20741992,139.66,139.63,0.05322966]
[1745247528331,0.04871992,139.66,139.63,0.05322966]
[1745247528734,0.04871992,139.66,139.63,7.21302966]
[1745247529336,7.20741992,139.66,139.63,7.21302966]
[1745247529633,18.85295719,139.66,139.63,0.05322966]
[1745247530034,7.1591,139.65,139.63,0.05322966]
[1745247530235,18.85295719,139.66,139.63,0.05322966]
[1745247530437,18.85295719,139.66,139.58,30.54]
[1745247530935,18.85295719,139.66,139.61,7.1611]
[1745247531331,18.80423727,139.64,139.55,4.6406]
[1745247531531,18.85295719,139.66,139.62,0.0475831]
[1745247531825,0.05095302,139.65,139.58,49.34423727]
[1745247532027,0.05095302,139.65,139.63,0.05469051]
[1745247532227,0.05095302,139.65,139.58,30.54]
[1745247532426,7.21035302,139.65,139.61,7.1609]
[1745247532837,7.1599,139.64,139.6,7.21037794]
[1745247533437,7.1599,139.64,139.61,7.161]
[1745247533836,7.1599,139.64,139.6,0.04897794]
[1745247534037,2.4034,139.68,139.62,18.80423727]
[1745247534241,2.3636,139.69,139.64,18.80423727]
[1745247534638,2.3636,139.69,139.66,7.1583]
[1745247535043,2.3636,139.69,139.63,30.54]
[1745247535240,0.05025507,139.69,139.66,0.05101862]
[1745247535943,0.05025507,139.69,139.68,7.1576]
[1745247536444,0.05025507,139.69,139.66,0.05101862]
[1745247536640,0.05025507,139.69,139.67,7.1581]
[1745247537234,0.05025507,139.69,139.68,7.1576]
[1745247537439,0.05025507,139.69,139.66,0.05101862]
[1745247538444,0.05025507,139.69,139.68,7.1576]
[1745247540140,0.05025507,139.69,139.67,37.6979]
[1745247540345,0.05025507,139.69,139.67,30.54]
[1745247540746,0.05025507,139.69,139.67,37.6978]
[1745247540947,0.05025507,139.69,139.67,30.54]
[1745247541345,0.05025507,139.69,139.66,0.05101862]
[1745247541847,18.85449234,139.69,139.66,0.05101862]
[1745247542054,7.158,139.68,139.66,0.05101862]
[1745247544051,7.1581,139.67,139.66,0.05101862]
[1745247544250,18.85449234,139.69,139.66,0.05101862]
[1745247544950,7.1579,139.68,139.66,0.05101862]
[1745247546052,7.1581,139.67,139.66,0.05101862]
[1745247547152,7.1578,139.68,139.66,0.05101862]
[1745247548251,0.05025507,139.69,139.66,0.05101862]
[1745247549249,7.1578,139.68,139.66,0.05101862]
[1745247550149,0.05025507,139.69,139.66,0.05101862]
[1745247551153,18.85449234,139.69,139.66,0.05101862]
[1745247551449,19.17696564,139.68,139.66,0.05101862]
[1745247552151,7.1581,139.67,139.66,0.05101862]
[1745247553650,12.01936564,139.68,139.62,37.6606]
[1745247553855,19.17846564,139.66,139.62,30.5]
[1745247554151,19.17846564,139.66,139.63,7.1598]
[1745247554351,12.01936564,139.67,139.62,30.5]
[1745247554846,0.05062076,139.66,139.64,7.1594]
[1745247558150,0.05062076,139.66,139.63,0.0473238]
[1745247558455,12.01936564,139.65,139.63,0.0473238]
[1745247558654,2.24532076,139.66,139.63,0.0473238]
[1745247558850,12.01936564,139.64,139.63,0.0473238]
[1745247559954,12.01936564,139.64,139.59,30.5]
[1745247560150,19.18026564,139.62,139.59,37.6619]
[1745247560444,12.01936564,139.62,139.59,30.5]
[1745247560855,12.01936564,139.63,139.59,30.5]
[1745247561155,0.04679751,139.62,139.6,0.05417877]
[1745247561357,0.04679751,139.62,139.61,7.1608]
[1745247567060,14.24906564,139.65,139.61,7.1608]
[1745247567061,2.2297,139.65,139.64,7.1596]
[1745247567559,2.2297,139.65,139.61,12.01936564]
[1745247567858,2.2297,139.65,139.64,7.1596]
[1745247568861,2.2297,139.65,139.63,0.05198612]
[1745247569656,0.04524208,139.66,139.63,0.05198612]
[1745247569861,2.2535,139.71,139.63,0.05198612]
[1745247569862,14.26386564,139.73,139.65,12.01936564]
[1745247570161,40.0078,139.74,139.7,7.1564]
[1745247570358,52.02716564,139.74,139.69,12.01936564]
[1745247570555,2.3529,139.74,139.69,12.01936564]
[1745247570765,12.01936564,139.76,139.71,12.01936564]
[1745247571058,0.04885842,139.75,139.72,0.04764444]
[1745247571258,0.04885842,139.75,139.74,7.1545]
[1745247571756,0.04885842,139.75,139.72,30.54764444]
[1745247572068,0.04885842,139.75,139.73,7.1547]
[1745247572265,0.04885842,139.75,139.72,30.54764444]
[1745247572861,0.04885842,139.75,139.72,0.04764444]
[1745247573866,0.04885842,139.75,139.73,7.1549]
[1745247574264,0.04885842,139.75,139.74,7.1545]
[1745247574460,0.04885842,139.75,139.72,0.04764444]
[1745247574865,0.04885842,139.75,139.73,7.1549]
[1745247575166,0.04885842,139.75,139.72,0.04764444]
[1745247576065,0.04885842,139.75,139.73,7.1546]
[1745247577163,0.04885842,139.75,139.72,0.04764444]
[1745247577757,0.04885842,139.75,139.74,7.1545]
[1745247577962,0.04885842,139.75,139.72,0.04764444]
[1745247578867,0.04885842,139.75,139.73,7.1546]
[1745247579067,0.04885842,139.75,139.72,0.04764444]
[1745247579366,2.3529,139.79,139.73,49.21150071]
[1745247579764,9.5049,139.79,139.73,49.21150071]
[1745247580367,0.02107029,139.77,139.73,49.21150071]
[1745247580664,0.02107029,139.77,139.75,7.1537]
[1745247580865,0.02107029,139.77,139.73,30.46]
[1745247581067,0.02107029,139.77,139.75,7.1537]
[1745247582367,0.02107029,139.77,139.74,7.1543]
[1745247583166,0.02107029,139.77,139.75,7.154]
[1745247584969,0.02107029,139.77,139.74,7.1543]
[1745247585268,0.02107029,139.77,139.73,30.46]
[1745247585664,18.772571,139.77,139.72,0.04764444]
[1745247585971,7.1538,139.76,139.72,0.04764444]
[1745247586469,7.1538,139.76,139.72,7.20284444]
[1745247586669,7.1541,139.75,139.72,7.20284444]
[1745247587671,7.1538,139.76,139.73,7.1549]
[1745247587870,0.02107029,139.77,139.72,0.04764444]
[1745247588372,7.17457029,139.77,139.73,7.1547]
[1745247588971,7.1538,139.76,139.72,7.20284444]
[1745247589172,0.02107029,139.77,139.72,0.04764444]
[1745247589667,0.02107029,139.77,139.75,7.1537]
[1745247591172,0.02107029,139.77,139.72,0.04764444]
[1745247591375,7.154,139.76,139.72,0.04764444]
[1745247591573,0.02107029,139.77,139.73,7.1548]
[1745247591773,0.02107029,139.77,139.72,0.04764444]
[1745247592167,7.1541,139.75,139.72,0.04764444]
[1745247592370,0.02107029,139.77,139.72,0.04764444]
[1745247592574,7.1538,139.76,139.72,7.20294444]
[1745247592776,0.02107029,139.77,139.72,7.20294444]
[1745247593274,7.1543,139.75,139.72,0.04764444]
[1745247593770,7.1543,139.75,139.72,7.20284444]
[1745247593970,0.02107029,139.77,139.72,0.04764444]
[1745247594674,7.1536,139.76,139.73,7.1547]
[1745247597979,7.154,139.75,139.72,7.20294444]
[1745247598182,0.02107029,139.77,139.72,0.04764444]
[1745247599378,0.02107029,139.77,139.72,7.20274444]
[1745247599579,0.02107029,139.77,139.72,0.04764444]
[1745247600076,18.75150071,139.76,139.72,0.04764444]
[1745247600380,18.75150071,139.74,139.66,30.46]
[1745247600580,18.75150071,139.72,139.66,30.46]
[1745247600780,49.21150071,139.74,139.66,30.46]
[1745247601081,7.1559,139.72,139.69,7.1567]
[1745247601477,7.2044216,139.72,139.69,7.20890512]
[1745247601692,7.1561,139.71,139.69,0.05220512]